[Event "1000 GM Labor Day Super Swiss 2024"]
[Site "San Jose"]
[Date "2024.09.01"]
[Round "4.8"]
[White "Macovei, Andrei"]
[Black "Yim, Sung Ho"]
[Result "1-0"]
[Annotator "TA"]
[ECO "C84"]
[WhiteElo "2466"]
[BlackElo "2291"]
[PlyCount "75"]
[EventDate "2024.08.30"]
[EventType "swiss"]
[EventCountry "USA"]
[SourceTitle "playchess.com"]
[Source "ChessBase"]
[SourceQuality "1"]
[TimeControl "5400+30"]

{[%evp 13,75,16,28,8,14,8,24,12,22,25,30,25,20,20,22,23,21,18,27,28,32,26,27,24,39,19,66,66,218,218,216,206,236,228,250,142,151,140,176,166,166,165,162,143,168,156,425,425,462,442,501,488,698,711,858,883,882,850,924,729,855,854,833,743]} 1. e4 {[%emt 1:31:00]} e5 {[%emt 0:08:51]} 2. Nf3 {[%emt 0:00:00]} Nc6 {[%emt 0:00:14]} 3. Bb5 {[%emt 0:00:00]} a6 {[%emt 0:00:07]} 4. Ba4 {[%emt 0:00:00]} Nf6 {[%emt 0:00:06]} 5. O-O {[%emt 0:00:00]} Be7 {[%emt 0:00:05]} 6. d3 {[%emt 0:00:00]} b5 {[%emt 0:00:45]} 7. Bb3 {[%emt 0:00:00]} d6 {[%emt 0:00:12]} 8. Bd2 {[%emt 0:00:00]} O-O {[%emt 0:02:33]} 9. h3 {[%emt 0:00:00]} h6 {[%emt 0:01:04]} 10. Re1 {[%emt 0:00:00] White has an edge.} Re8 {[%emt 0:01:24]} 11. a4 {[%emt 0:00:00] axb5 would now be deadly.} Rb8 {[%emt 0:04:54]} 12. axb5 {[%emt 0:00:00]} axb5 {[%emt 0:00:04]} 13. Nc3 {[%emt 0:00:00]} Bf8 {[%emt 0:01:06]} 14. Nd5 {[%emt 0:00:00]} Nxd5 {[%emt 0:00:37]} 15. Bxd5 {[%emt 0:00:00]} Ne7 {[%emt 0:02:55]} 16. Bb3 {[%emt 0:00:00]} Ng6 {[%emt 0:01:59]} 17. Ra7 {[%emt 0:00:00]} Bb7 {[%emt 0:08:41]} 18. Nh2 {[%emt 0:00:00]} d5 {[%emt 0:10:05]} 19. Qf3 {[%emt 0:00:00][%cal Oa7b7] aiming for Rxb7!} Nh4 {[%emt 0:19:36]} (19... Nf4 $11) 20. Qh5 $14 {[%emt 0:00:00][%cal Oa7b7] Threatens to win with Rxb7! White is more active.} g6 $2 {[%emt 0:10:05]} (20... Ng6 $1 $14) 21. Qe2 $18 {[%emt 0:00:00]} dxe4 {[%emt 0:00:31]} 22. dxe4 {[%emt 0:00:00]} c5 {[%emt 0:05:35] [#]} 23. c4 $1 {[%emt 0:00:00]} Qb6 {[%emt 0:03:52] [#]} 24. Rxb7 {[%emt 0:00:00]} Rxb7 $16 {[%emt 0:00:26]} (24... Qxb7 $2 {perishes.} 25. g3) 25. g3 {[%emt 0:00:00] Dodges g5} b4 {[%emt 0:01:33]} ({Don't blunder} 25... bxc4 $2 26. Bxc4 Qxb2 27. gxh4 $18) 26. gxh4 {[%emt 0:00:00]} h5 {[%emt 0:01:03]} 27. Ba4 {[%emt 0:00:00][%cal Bb3a4,Ba4c6,Bc6d5][%mdl 32]} Rd8 {[%emt 0:00:26]} 28. Nf3 {[%emt 0:00:00]} Qe6 {[%emt 0:01:29]} 29. Ng5 {[%emt 0:00:00]} Qe7 {[%emt 0:00:27] This move loses the game for Black.} (29... Qf6 $16 {might work better.} 30. Nf3 Qe6) 30. Bc6 $18 {[%emt 0:00:00] White is clearly winning.} Ra7 {[%emt 0:01:01]} 31. Bd5 {[%emt 0:00:00]} Qe8 {[%emt 0:00:30]} 32. f4 {[%emt 0:00:00]} Kg7 {[%emt 0:01:59]} (32... Bh6 $142 33. f5 Bxg5) 33. f5 {[%emt 0:00:00]} Rd6 {[%emt 0:00:19]} 34. fxg6 {[%emt 0:00:00]} fxg6 {[%emt 0:00:24]} 35. Rf1 {[%emt 0:00:00]} Rda6 {[%emt 0:02:01]} 36. Qe3 {[%emt 0:00:00][%cal Og5e6] White wants to mate with Ne6+!} Kh8 {[%emt 0:02:34]} 37. Kg2 {[%emt 0:00:00]} Rb6 {[%emt 0:02:46]} 38. Qf2 {[%emt 0:00:00] Weighted Error Value: White=0.08 (flawless) /Black=0.45.  Loses game:     	---       	Black=1      Mistake:       	White=1     	Black=3      OK:         	White=14    	Black=8      Best:        	White=2     	---        Strong:       	White=1     	---} 1-0

[Event "1000 GM Labor Day Super Swiss 2024"]
[Site "San Jose"]
[Date "2024.09.01"]
[Round "4.9"]
[White "Garcia Guerrero, Isaac Antonio"]
[Black "Batchuluun, Tsegmed"]
[Result "0-1"]
[Annotator "TA"]
[ECO "A30"]
[WhiteElo "2291"]
[BlackElo "2458"]
[PlyCount "125"]
[EventDate "2024.08.30"]
[EventType "swiss"]
[EventCountry "USA"]
[SourceTitle "playchess.com"]
[Source "ChessBase"]
[SourceQuality "1"]
[TimeControl "5400+30"]

{[%evp 20,125,-6,-17,-4,-28,-22,-34,-12,-6,2,-24,-8,-28,-24,-33,-31,-44,-21,-40,-14,-27,0,-24,0,0,0,-48,-72,-74,-53,-164,-58,-102,-12,-172,-175,-396,-389,-660,-341,-402,-393,-476,-479,-441,-305,-306,-311,-315,-332,-309,-308,-339,-144,-137,-142,-137,-129,-314,-313,-511,-447,-576,-555,-522,-522,-1347,-1202,-1575,-1338,-1691,-971,-1433,-1496,-1833,-1816,-1891,-949,-1456,-1703,-2331,-1870,-1694,-1566,-1191,0,-8,-8,-29969,-29970,-29968,-9765,-29968,-29968,-29971,-29966,-29974,-29974,-29975,-29976,-29976,-29978,-29977,-29977,-29974,-29976,-5122]} 1. Nf3 {[%emt 0:00:07]} Nf6 {[%emt 0:00:07]} 2. e3 {[%emt 0:00:36]} c5 {[%emt 0:01:23]} 3. c4 {[%emt 0:00:25]} g6 {[%emt 0:03:05]} 4. b3 {[%emt 0:05:39]} Bg7 {[%emt 0:00:11]} 5. Bb2 {[%emt 0:00:07]} O-O {[%emt 0:00:17]} 6. Be2 {[%emt 0:02:44]} Nc6 {[%emt 0:00:05]} 7. O-O {[%emt 0:02:09]} d5 {[%emt 0:00:05]} 8. cxd5 {[%emt 0:02:17]} Qxd5 {[%emt 0:00:05]} 9. d3 {[%emt 0:12:24]} b6 {[%emt 0:01:48]} 10. a3 {[%emt 0:00:55]} Bb7 {[%emt 0:13:04]} 11. Nbd2 {[%emt 0:00:48]} Rfd8 {[%emt 0:01:10]} 12. Qc2 {[%emt 0:01:41]} Rac8 {[%emt 0:01:21]} 13. Rac1 {[%emt 0:00:21]} Qd7 {[%emt 0:21:56] Black is slightly better.} 14. Rfd1 {[%emt 0:05:56]} Nd5 {[%emt 0:03:53]} 15. Bxg7 {[%emt 0:03:57]} Kxg7 {[%emt 0:00:05]} 16. Qb2+ {[%emt 0:00:16]} f6 {[%emt 0:00:24]} 17. Ne4 {[%emt 0:04:46][%cal Oc1c5]} e5 {[%emt 0:03:31]} 18. h4 {[%emt 0:01:37][%cal Bh2h4,Bh4h5][%mdl 32]} Qe7 {[%emt 0:02:00]} 19. Ng3 {[%emt 0:05:19]} a5 {[%emt 0:02:15]} 20. h5 {[%emt 0:03:17]} Qe6 {[%emt 0:00:35]} 21. Re1 {[%emt 0:04:37]} Rd7 {[%emt 0:07:49]} 22. Rc4 {[%emt 0:07:02]} Rcd8 {[%emt 0:06:06]} 23. Nh4 {[%emt 0:10:00]} (23. Rh4 $11 g5 24. h6+ Kh8 25. Rh5) 23... Nde7 $15 {[%emt 0:00:54]} 24. hxg6 {[%emt 0:06:46]} hxg6 {[%emt 0:00:05]} 25. Rg4 {[%emt 0:00:08]} ({White has to play} 25. Nf3 $1 $15) 25... Ba6 {[%emt 0:13:55]} (25... Rh8 $1 $19 26. d4 exd4 (26... cxd4 27. Ngf5+ Nxf5 28. Nxg6 $15) 27. Nxg6 Nxg6 28. exd4 Nce7 (28... Rxd4 29. Rxg6+ Kxg6 30. Bh5+ Rxh5 31. Qb1+ $11)) 26. e4 {[%emt 0:10:24]} Bxd3 {[%emt 0:00:44] Active counter play!} ({Black should try} 26... Kf7 $17 27. f4 exf4 (27... Bxd3 28. f5 $11) 28. Rxf4 Kg7 (28... Bxd3 29. Nf3 $11)) 27. Ngf5+ $2 {[%emt 0:01:17]} Kh7 $1 $19 {[%emt 0:08:14]} (27... Nxf5 28. Rxg6+ Kf7 29. exf5 $16) 28. Qc1 $2 {[%emt 0:05:39]} (28. Bxd3 {might work better.} Rxd3 29. Nxg6 Nxg6 30. Qc1) 28... gxf5 {[%emt 0:01:52]} 29. exf5 {[%emt 0:00:37]} (29. Nxf5 Nxf5 (29... Qxb3 30. Qh6#) 30. exf5 Qxf5 31. Qe3) 29... Nxf5 {[%emt 0:01:05]} 30. Nxf5 {[%emt 0:01:10]} Qxf5 {[%emt 0:00:50]} (30... Bxf5 31. Rh4+ Kg8 32. Bc4 $19) 31. Rh4+ {[%emt 0:00:27]} Kg8 {[%emt 0:00:12]} 32. Bg4 {[%emt 0:01:00]} Qg5 {[%emt 0:01:52]} 33. Bxd7 {[%emt 0:00:24]} Rxd7 {[%emt 0:00:40]} 34. Qxg5+ {[%emt 0:00:37]} fxg5 {[%emt 0:00:04]} 35. Rh6 {[%emt 0:00:07]} Rc7 {[%emt 0:00:27]} 36. Re3 {[%emt 0:00:41]} Kg7 {[%emt 0:01:58]} (36... Bc2 $19 {is more deadly. ...Kf7 is the strong threat.} 37. Rg3 Kg7) 37. Rxc6 $17 {[%emt 0:01:03]} Rxc6 {[%emt 0:00:04]} 38. Rxd3 {[%emt 0:00:06][%mdl 4096] Endgame. KR-KR} a4 {[%emt 0:00:20]} 39. bxa4 $2 {[%emt 0:00:32]} (39. Kf1 $17 {was the only chance.}) 39... c4 $19 {[%emt 0:00:02]} 40. Rc3 {[%emt 0:00:11]} (40. Rd1 e4 41. Kf1) 40... Kf6 {[%emt 0:05:57]} 41. Kf1 {[%emt 0:00:13]} e4 $1 {[%emt 0:00:00]} 42. Ke2 {[%emt 0:00:16]} Ke5 {[%emt 0:00:00] Threatens to win with ...Kd4.} 43. Rg3 {[%emt 0:00:33]} Kd4 {[%emt 0:00:00] ...c3 would now be deadly.} 44. Rxg5 {[%emt 0:01:37]} c3 {[%emt 0:00:00] ( -> ...c2)} 45. Kd1 {[%emt 0:00:05]} Rf6 $1 {[%emt 0:00:00]} 46. f3 {[%emt 0:00:31] [#]} e3 $1 {[%emt 0:00:41] Strongly threatening ...Re6.} (46... exf3 47. gxf3 Rxf3 48. Rg6 $11) 47. Rg8 {[%emt 0:01:14]} Re6 {[%emt 0:00:04]} 48. Ke2 {[%emt 0:01:17]} Kc4 {[%emt 0:00:04]} 49. Rc8+ {[%emt 0:00:23]} Kb3 {[%emt 0:00:03][%cal Oc3c2] White must now prevent ...c2!} 50. g4 {[%emt 0:00:21]} c2 {[%emt 0:00:03][%cal Oe6e5] And now ...Re5! would win.} (50... Kxa4 $2 51. Rxc3 Rg6 52. Kxe3 $18 (52. Rxe3 Kb5 $18)) 51. a5 {[%emt 0:00:42]} bxa5 {[%emt 0:02:57]} 52. g5 {[%emt 0:00:06]} Re5 $2 {[%emt 0:00:49]} (52... Kxa3 53. Rxc2 Rg6 54. f4 $18 (54. Kxe3 Rxg5 55. f4 Rg3+ 56. Ke4 Rg8 $11)) (52... Kb2 $19 53. Rb8+ Kxa3) 53. g6 $1 $11 {[%emt 0:00:59]} Rg5 {[%emt 0:00:08] Really sharp!} (53... Kxa3 $2 54. f4 (54. Rxc2 Rg5 $18) 54... Re4 55. g7 $18 (55. Rxc2 Rxf4 56. Rc6 Kb4 $11) (55. Rxc2 Rxf4 56. Kxe3 Rg4 $11)) (53... Re8 {feels hotter.} 54. Rc5 Re6 55. g7 Rg6) 54. Kxe3 $2 {[%emt 0:00:29][%mdl 8192]} (54. Kd3 $11) 54... Rxg6 {[%emt 0:00:39]} ({Weaker is} 54... Kxa3 55. Rxc2 Rxg6 56. f4 $11) 55. Rb8+ {[%emt 0:00:14]} Kc3 $1 {[%emt 0:00:07]} (55... Kxa3 56. Kd2 $11) 56. Rc8+ {[%emt 0:00:05]} Kb2 {[%emt 0:00:03] Black mates.} 57. Rb8+ {[%emt 0:00:05]} Kc1 $1 {[%emt 0:00:29]} ({Inferior is} 57... Kxa3 58. Kd2 $11) 58. f4 {[%emt 0:01:29]} Kd1 {[%emt 0:01:03]} 59. Rd8+ {[%emt 0:00:30] [#]} Ke1 $1 {[%emt 0:00:04]} 60. Rc8 {[%emt 0:00:15]} Rg3+ {[%emt 0:00:21]} 61. Ke4 {[%emt 0:00:45]} Kd2 {[%emt 0:00:05]} (61... Rxa3 62. Rxc2 Ra4+ 63. Ke5 $16) 62. Rd8+ {[%emt 0:00:15]} Kc3 {[%emt 0:00:48]} 63. Rc8+ {[%emt 0:00:45] Weighted Error Value: White=0.91/Black=0.59.  Loses game:     	White=2     	---        Missed win:     	---       	Black=1      Mistake:       	White=6     	Black=2      Inaccurate:     	White=4     	Black=4      OK:         	White=8     	Black=10     Best:        	White=2     	Black=3      Strong:       	---       	Black=2} 0-1

[Event "1000 GM Labor Day Super Swiss 2024"]
[Site "San Jose"]
[Date "2024.09.01"]
[Round "4.10"]
[White "Hevia Alejano, Carlos Antonio"]
[Black "Chinni, Rishabh"]
[Result "1-0"]
[Annotator "TA"]
[ECO "E06"]
[WhiteElo "2414"]
[BlackElo "2220"]
[PlyCount "79"]
[EventDate "2024.08.30"]
[EventType "swiss"]
[EventCountry "USA"]
[SourceTitle "playchess.com"]
[Source "ChessBase"]
[SourceQuality "1"]
[TimeControl "5400+30"]

{[%evp 13,79,47,33,39,41,10,19,15,68,29,33,24,157,168,243,229,234,236,242,242,260,249,282,275,277,236,262,263,255,251,243,235,341,352,413,402,435,415,406,345,530,492,608,608,1052,1003,5414,5365,29979,29978,29983,964,953,951,1046,949,5922,5561,29974,29969,29988,29989,29992,29993,29993,29994,29998,29999]} 1. c4 {[%emt 0:02:33]} Nf6 {[%emt 0:00:08]} 2. Nf3 {[%emt 1:28:57]} e6 {[%emt 0:00:14]} 3. g3 {[%emt 0:00:00]} d5 {[%emt 0:00:44]} 4. Bg2 {[%emt 0:00:00]} c5 {[%emt 0:00:49]} 5. O-O {[%emt 0:00:00]} Be7 {[%emt 0:00:17]} 6. d4 {[%emt 0:00:00]} O-O {[%emt 0:03:30]} 7. cxd5 {[%emt 0:00:00]} Nxd5 {[%emt 0:05:18]} 8. dxc5 {[%emt 0:00:00]} Bxc5 {[%emt 0:04:15]} 9. Bd2 {[%emt 0:00:00]} Nc6 {[%emt 0:03:48]} 10. Nc3 {[%emt 0:00:00] The position is equal.} b6 {[%emt 0:12:58]} (10... Qe7 $11) 11. Nxd5 {[%emt 0:00:00]} exd5 {[%emt 0:00:22]} 12. Rc1 {[%emt 0:00:00]} Ba6 {[%emt 0:06:13] Black is now going downhill.} (12... Bg4 $11) 13. Qa4 $1 $16 {[%emt 0:00:00][%csl LRa6,LRc6]} Bxe2 {[%emt 0:11:01]} (13... Bb7 $142 14. b4 Nd4) 14. Qxc6 $18 {[%emt 0:00:00] Black must now prevent Rfe1.} Rc8 {[%emt 0:00:13]} 15. Qa4 {[%emt 0:00:00]} b5 {[%emt 0:07:11]} 16. Qg4 {[%emt 0:00:00]} Bxf1 {[%emt 0:07:05]} 17. Bxf1 {[%emt 0:00:00]} Qb6 {[%emt 0:06:18]} 18. Kg2 {[%emt 0:00:00] [#] Hoping for b4.} f5 {[%emt 0:07:16]} 19. Qf4 $40 {[%emt 0:00:00][%mdl 128] Black is in trouble.} Bd6 {[%emt 0:02:19]} 20. Qg5 {[%emt 0:00:00] aiming for Rxc8.} Rxc1 {[%emt 0:00:47]} 21. Bxc1 {[%emt 0:00:00]} h6 {[%emt 0:00:35]} 22. Qd2 {[%emt 0:00:00]} Qc5 {[%emt 0:02:25] [#]} (22... d4 {was worth a try.} 23. Qc2 (23. Qxd4 Qxd4 24. Nxd4 a6 $18) (23. Nxd4 f4 $18) 23... a6) 23. b4 $1 {[%emt 0:00:00][%mdl 512]} Qxb4 {[%emt 0:00:22]} (23... Qc6 24. Qd4) 24. Qxd5+ {[%emt 0:00:00]} Kh7 {[%emt 0:18:22]} 25. Be3 {[%emt 0:00:00][%cal Of1d3] Inhibits Qc5. Bd3! is the strong threat.} ({Don't do} 25. Bxb5 Qc5 26. Qd3 Rd8 $18) 25... Be7 {[%emt 0:00:00]} 26. Bxa7 {[%emt 0:00:00]} ({Less strong is} 26. Qxb5 Qxb5 27. Bxb5 g6 $18) 26... Qd6 {[%emt 0:00:00]} (26... Qe4 {was called for.} 27. Qxb5 Rd8) 27. Qxb5 {[%emt 0:00:00]} f4 {[%emt 0:00:00]} 28. Bd3+ {[%emt 0:00:00]} Kg8 {[%emt 0:00:00]} 29. Qc4+ {[%emt 0:00:00]} Kh8 {[%emt 0:00:00]} 30. Qe4 {[%emt 0:00:00]} g6 {[%emt 0:00:00]} 31. Bd4+ {[%emt 0:00:00]} Kh7 {[%emt 0:00:00]} 32. Be5 {[%emt 0:00:00]} (32. Bc5 $142 Rf6 33. Bxd6 Bxd6 34. Bc4 (34. gxf4 Kg7 $18) 34... Kg7 35. Qb7+ Kh8 36. Qd5 Rf8 37. Qxd6) 32... Qe6 {[%emt 0:00:00]} 33. Nd4 {[%emt 0:00:02]} f3+ {[%emt 0:00:00]} 34. Nxf3 {[%emt 0:00:10]} Rf5 {[%emt 0:00:00]} 35. g4 {[%emt 0:01:01]} Rf8 {[%emt 0:00:00]} 36. h4 {[%emt 0:00:18][%cal Bh2h4,Bh4h5,Bh5g6][%mdl 32] White mates.} Rc8 {[%emt 0:00:00]} 37. h5 {[%emt 0:00:27]} Kg8 {[%emt 0:00:00]} 38. Nd4 {[%emt 0:00:25]} Qf7 {[%emt 0:00:00]} 39. hxg6 {[%emt 0:00:16]} Qe8 {[%emt 0:00:00]} 40. Qd5+ {[%emt 0:00:08] Weighted Error Value: White=0.11 (very precise) /Black=0.68.  Mistake:       	---       	Black=5      Inaccurate:     	White=2     	Black=1      OK:         	White=10    	Black=9      Best:        	White=2     	---} 1-0

[Event "1000 GM Labor Day Super Swiss 2024"]
[Site "San Jose"]
[Date "2024.09.01"]
[Round "4.11"]
[White "Sivakumar, Shaashwath"]
[Black "Gongora Montes, Benjamin"]
[Result "1-0"]
[Annotator "TA"]
[ECO "E04"]
[WhiteElo "2321"]
[BlackElo "2111"]
[PlyCount "41"]
[EventDate "2024.08.30"]
[EventType "swiss"]
[EventCountry "USA"]
[SourceTitle "playchess.com"]
[Source "ChessBase"]
[SourceQuality "1"]
[TimeControl "5400+30"]

{[%evp 16,41,21,11,54,27,83,64,110,104,118,107,197,195,237,246,274,189,192,181,348,229,496,491,593,616,593,466]} 1. d4 {[%emt 0:00:02]} d5 {[%emt 0:00:20][%cal Bd7d5,Bd5c4][%mdl 32]} 2. c4 {[%emt 0:00:06]} e6 {[%emt 0:00:06]} 3. Nf3 {[%emt 0:00:05]} Nf6 {[%emt 0:01:40]} 4. g3 {[%emt 0:00:07]} dxc4 {[%emt 0:00:07]} 5. Bg2 {[%emt 0:00:03]} Bb4+ {[%emt 0:03:22]} 6. Bd2 {[%emt 0:00:13]} Bd6 {[%emt 0:00:11]} 7. O-O {[%emt 0:16:01]} Nc6 {[%emt 0:01:57]} 8. Qa4 {[%emt 0:04:02]} O-O {[%emt 0:00:17]} 9. Qxc4 {[%emt 0:00:22]} Bd7 {[%emt 0:01:58]} 10. Nc3 {[%emt 0:04:19]} a6 {[%emt 0:00:49]} (10... e5 $11 {remains equal.}) 11. Rfd1 $16 {[%emt 0:08:34] White is more active.} b5 {[%emt 0:07:56]} (11... Qe8 $14) 12. Qd3 {[%emt 0:00:12]} Rb8 {[%emt 0:07:32]} 13. Rac1 {[%emt 0:06:47]} Rb6 {[%emt 0:27:25] [#]} (13... b4 $16) 14. e4 $1 $18 {[%emt 0:10:25] Threatens to win with e5.} e5 {[%emt 0:00:16] [#]} 15. Bg5 $1 {[%emt 0:00:11] Nd5 would now be deadly.} h6 {[%emt 0:09:34]} 16. Nd5 {[%emt 0:16:51]} hxg5 {[%emt 0:14:54]} 17. Nxb6 {[%emt 0:00:06]} g4 $2 {[%emt 0:06:49]} (17... cxb6 $2 18. dxe5 Bc5 (18... Bxe5 $2 19. Rxc6 Bxb2 20. e5 $18) 19. exf6 $18) (17... Nxd4 18. Nxd4 (18. Nxd7 Nxf3+ 19. Qxf3 Nxd7 $18) 18... exd4) 18. Nxd7 {[%emt 0:00:29]} gxf3 $2 {[%emt 0:00:37]} (18... Nxd7 {is a better defense.} 19. Rxc6 gxf3) 19. Nxf6+ {[%emt 0:00:05] White is clearly winning.} (19. Nxf8 Nxd4 $18) ({Weaker is} 19. Rxc6 Nxd7 20. Qxf3 (20. Bxf3 exd4 21. Qxd4 Ne5 $18) 20... exd4 $18) 19... Qxf6 {[%emt 0:00:10]} 20. Rxc6 {[%emt 0:00:09]} ({Less strong is} 20. Qxf3 Qxf3 21. Bxf3 Nxd4 $18) ({Not} 20. Bxf3 Nxd4 21. Kg2 Qe6 $16) 20... fxg2 {[%emt 0:00:10]} 21. Kxg2 {[%emt 0:31:51] White took control after the opening.   Weighted Error Value: White=0.24 (precise) /Black=0.82.  Mistake:       	---       	Black=5      Inaccurate:     	White=3     	---        OK:         	White=7     	Black=2      Strong:       	White=1     	---} 1-0